Workbook

Sheet KORTTI
B1: Aulimaija Eskola | E1: 4.12.1969
B2: MESTARUUSSARJA | E2: Runkosarja | I2: Kärkilyönnit (KL), pesänvälit | P2: Ylempi loppusarja | U2: Alempi loppusarja | AB2: Arvo-ottelut ja mitalit
B3: Vuosi | C3: Sija | D3: Seura | E3: OTT | F3: KUN | G3: LÖI | H3: TOI | I3: KL | J3: 0 > 1 | K3: 1 > 2 | L3: 2 > 3 | M3: 3 > k | N3: KL-% | P3: OTT | Q3: KUN | R3: LÖI | S3: TOI | T3: KL | U3: OTT | V3: KUN | W3: LÖI | X3: TOI | Y3: KL | Z3: IL | AA3: LL | AB3: Halli | AC3: K | AD3: H | AE3: P
B4: 1986 | C4: 2. | D4: KK-V | F4: suomensarja
B5: 1987 | C5: 1. | D5: KK-V | F5: ykkössarja
B6: 1988 | C6: 10. | D6: KK-V | E6: 18 | F6: 0 | G6: 5 | H6: 10 | I6: 57 | J6: 15 | K6: 24 | L6: 13 | M6: =PRODUCT(F6+G6) -> 5 | N6: ----
B7: 1989 | C7: 2. | D7: Pesäkarhut | F7: ykkössarja | U7: 2 | V7: 0 | W7: 0 | X7: 1 | Y7: 7
B8: 1990 | C8: 5. | D8: UPV | E8: 20 | F8: 2 | G8: 12 | H8: 16 | I8: 85 | J8: 18 | K8: 30 | L8: 23 | M8: =SUM(F8+G8) -> 14 | N8: 53.2 % | O8: =PRODUCT(I8/N8) -> 159.7744361
B9: 1991 | C9: 10. | D9: UPV | E9: 21 | F9: 4 | G9: 27 | H9: 15 | I9: 105 | J9: 14 | K9: 26 | L9: 34 | M9: =SUM(F9+G9) -> 31 | N9: 61.8 % | O9: =PRODUCT(I9/N9) -> 169.9029126
B10: 1992 | C10: 10. | D10: UPV | F10: ykköspesis
B11: 1993 | C11: 12. | D11: Pesäkarhut | E11: 24 | F11: 2 | G11: 26 | H11: 14 | I11: 96 | J11: 15 | K11: 21 | L11: 32 | M11: =SUM(F11+G11) -> 28 | N11: 55.2 % | O11: =PRODUCT(I11/N11) -> 173.9130435
B12: 1994 | C12: 2. | D12: Pesäkarhut | F12: ykköspesis
B13: 1995 | C13: 1. | D13: Pesäkarhut | F13: ykköspesis
B14: Yhteensä | E14: =SUM(E4:E11) -> 83 | F14: 8 | G14: 70 | H14: 55 | I14: 343 | J14: 62 | K14: 101 | L14: 102 | M14: 78 | N14: =PRODUCT(286/O14) -> 56.8 % | O14: =SUM(O4:O11) -> 503.5903922 | P14: 0 | Q14: 0 | R14: 0 | S14: 0 | T14: 0 | U14: 2 | V14: 0 | W14: 0 | X14: 1 | Y14: 7 | Z14: 0 | AA14: 0 | AB14: 0 | AC14: 0 | AD14: 0 | AE14: 0
B15: Pesispörssi | D15: =SUM(F14:H14)+((I14-F14-G14)/3)+(E14/3)+(Z14*25)+(AA14*25)+(AB14*10)+(AC14*25)+(AD14*20)+(AE14*15) -> 249.0
B17: URA SM-SARJASSA | E17: OTT | F17: KUN | G17: LÖI | H17: TOI | I17: KL | K17: ka/L | L17: ka/T | M17: ka/KL | N17: K - % | P17: ENSIMMÄISET
B18: Runkosarja | E18: =PRODUCT(E14) -> 83 | F18: =PRODUCT(F14) -> 8 | G18: =PRODUCT(G14) -> 70 | H18: =PRODUCT(H14) -> 55 | I18: =PRODUCT(I14) -> 343 | K18: =PRODUCT((F18+G18)/E18) -> 0.94 | L18: =PRODUCT(H18/E18) -> 0.66 | M18: =PRODUCT(I18/E18) -> 4.13 | N18: =PRODUCT(N14) -> 56.8 % | O18: =PRODUCT(O14) -> 503.5903922 | P18: Ottelu | R18: 08.05. 1988 KK-V - Roihu 7-11 | X18: 1. ottelu | Z18: 18 v 5 kk 4 pv
B19: Ylempi loppusarja | P19: Lyöty
B20: Alempi loppusarja | E20: =PRODUCT(U14) -> 2 | F20: =PRODUCT(V14) -> 0 | G20: 0 | H20: 1 | I20: 7 | K20: =PRODUCT((F20+G20)/E20) -> 0.00 | L20: =PRODUCT(H20/E20) -> 0.50 | M20: =PRODUCT(I20/E20) -> 3.50 | P20: Tuotu
B21: KAIKKI | E21: =SUM(E18:E20) -> 85 | F21: =SUM(F18:F20) -> 8 | G21: =SUM(G18:G20) -> 70 | H21: =SUM(H18:H20) -> 56 | I21: =SUM(I18:I20) -> 350 | K21: =PRODUCT((F21+G21)/E21) -> 0.92 | L21: =PRODUCT(H21/E21) -> 0.66 | M21: =PRODUCT(I21/E21) -> 4.12 | N21: 56.8 % | O21: =SUM(O18:O20) -> 503.5903922 | P21: Kunnari
B23: Seurat | D23: KK-V = Kokemäen Kova-Väki (1921)
D24: Pesäkarhut = Pesäkarhut, Pori (1985)
D25: UPV = Ulvilan Pesä-Veikot (1957)
